[Event "November 21 Early 2023"]
[Site "https://www.chess.com"]
[Date "2023.11.21"]
[Round "3"]
[White "Ashraf, Artin"]
[Black "Zakaryan, David"]
[Result "1-0"]
[Board "30"]
[TimeControl "180+1"]
[WhiteFideId "22514805"]
[BlackFideId "24101923"]
[WhiteElo "2235"]
[BlackElo "2323"]
[WhiteTeam "IRI"]
[BlackTeam "RUS"]
[WhiteClock "0:00:13"]
[BlackClock "0:00:15"]

1. c4 {[%clk 0:03:00]}  e6 {[%clk 0:02:56]} 2. Nf3 {[%clk 0:02:48]}  Nf6 {[%clk 0:02:55]} 3. d4 {[%clk 0:02:38]}  d5 {[%clk 0:02:55]} 4. Bg5 {[%clk 0:02:37]}  Bb4+ {[%clk 0:02:39]} 5. Nc3 {[%clk 0:02:35]}  O-O {[%clk 0:02:36]} 6. cxd5 {[%clk 0:02:24]}  exd5 {[%clk 0:02:36]} 7. Qb3 {[%clk 0:02:23]}  Bxc3+ {[%clk 0:02:12]} 8. Qxc3 {[%clk 0:02:24]}  h6 {[%clk 0:01:58]} 9. Bxf6 {[%clk 0:01:58]}  Qxf6 {[%clk 0:01:58]} 10. Qxc7 {[%clk 0:01:58]}  Na6 {[%clk 0:01:58]} 11. Qa5 {[%clk 0:01:43]}  Bg4 {[%clk 0:01:19]} 12. Ne5 {[%clk 0:01:40]}  Rfc8 {[%clk 0:01:17]} 13. e3 {[%clk 0:01:24]}  Bf5 {[%clk 0:00:46]} 14. Bxa6 {[%clk 0:01:14]}  Qxa6 {[%clk 0:00:47]} 15. Qxa6 {[%clk 0:01:09]}  bxa6 {[%clk 0:00:48]} 16. g4 {[%clk 0:00:41]}  Bh7 {[%clk 0:00:47]} 17. Nd7 {[%clk 0:00:41]}  Rc2 {[%clk 0:00:45]} 18. b3 {[%clk 0:00:39]}  Bd3 {[%clk 0:00:19]} 19. Nc5 {[%clk 0:00:35]}  Re2+ {[%clk 0:00:19]} 20. Kd1 {[%clk 0:00:35]}  Rc8 {[%clk 0:00:13]} 21. Rc1 {[%clk 0:00:17]}  Be4 {[%clk 0:00:12]} 22. Kxe2 {[%clk 0:00:16]}  Bxh1 {[%clk 0:00:11]} 23. Rxh1 {[%clk 0:00:17]}  a5 {[%clk 0:00:12]} 24. h3 {[%clk 0:00:15]}  Rc6 {[%clk 0:00:13]} 25. Rc1 {[%clk 0:00:15]}  h5 {[%clk 0:00:14]} 26. Nd3 {[%clk 0:00:15]}  Rf6 {[%clk 0:00:13]} 27. Nf4 {[%clk 0:00:14]}  hxg4 {[%clk 0:00:13]} 28. hxg4 {[%clk 0:00:15]}  Rd6 {[%clk 0:00:14]} 29. Rc5 {[%clk 0:00:15]}  g5 {[%clk 0:00:14]} 30. Rxd5 {[%clk 0:00:14]}  Rc6 {[%clk 0:00:14]} 31. Rxg5+ {[%clk 0:00:14]}  Kf8 {[%clk 0:00:15]} 32. Rxa5 {[%clk 0:00:15]}  Rh6 {[%clk 0:00:15]} 33. g5 {[%clk 0:00:14]}  Rh1 {[%clk 0:00:16]} 34. Rxa7 {[%clk 0:00:15]}  Kg8 {[%clk 0:00:17]} 35. Kf3 {[%clk 0:00:13]}  Rb1 {[%clk 0:00:17]} 36. Nd3 {[%clk 0:00:13]}  Rc1 {[%clk 0:00:15]} 37. Nxc1 {[%clk 0:00:13]} 1-0

[Event "November 21 Early 2023"]
[Site "https://www.chess.com"]
[Date "2023.11.21"]
[Round "3"]
[White "Pap, Gyula"]
[Black "Matinian, Nikita"]
[Result "0-1"]
[Board "34"]
[TimeControl "180+1"]
[WhiteFideId "725323"]
[BlackFideId "24129100"]
[WhiteElo "2525"]
[BlackElo "2417"]
[WhiteTeam "HUN"]
[BlackTeam "FID"]
[WhiteClock "0:00:00"]
[BlackClock "0:00:06"]

1. e4 {[%clk 0:03:00]}  c5 {[%clk 0:02:59]} 2. Nc3 {[%clk 0:02:56]}  Nc6 {[%clk 0:02:59]} 3. Nf3 {[%clk 0:02:56]}  e6 {[%clk 0:02:58]} 4. d4 {[%clk 0:02:53]}  cxd4 {[%clk 0:02:59]} 5. Nxd4 {[%clk 0:02:53]}  Qc7 {[%clk 0:03:00]} 6. Be3 {[%clk 0:02:52]}  a6 {[%clk 0:02:56]} 7. Qf3 {[%clk 0:02:52]}  h5 {[%clk 0:02:55]} 8. O-O-O {[%clk 0:02:26]}  Ne5 {[%clk 0:02:53]} 9. Qg3 {[%clk 0:02:23]}  d6 {[%clk 0:02:52]} 10. f4 {[%clk 0:02:21]}  Ng4 {[%clk 0:02:50]} 11. Bg1 {[%clk 0:02:19]}  N8f6 {[%clk 0:02:43]} 12. h3 {[%clk 0:02:16]}  Nh6 {[%clk 0:02:42]} 13. Be2 {[%clk 0:01:51]}  Bd7 {[%clk 0:02:41]} 14. e5 {[%clk 0:01:46]}  dxe5 {[%clk 0:02:18]} 15. fxe5 {[%clk 0:01:47]}  Rc8 {[%clk 0:02:10]} 16. Bf2 {[%clk 0:01:25]}  h4 {[%clk 0:01:59]} 17. Qe3 {[%clk 0:01:14]}  Nfg8 {[%clk 0:01:34]} 18. Kb1 {[%clk 0:01:10]}  Ne7 {[%clk 0:01:27]} 19. Bd3 {[%clk 0:01:10]}  g6 {[%clk 0:01:19]} 20. Bxh4 {[%clk 0:01:08]}  Nhf5 {[%clk 0:01:17]} 21. Bxf5 {[%clk 0:01:03]}  Rxh4 {[%clk 0:01:15]} 22. Be4 {[%clk 0:01:00]}  Qxe5 {[%clk 0:01:10]} 23. Rhe1 {[%clk 0:00:47]}  Bg7 {[%clk 0:00:45]} 24. Nf3 {[%clk 0:00:28]}  Rxc3 {[%clk 0:00:42]} 25. Qxc3 {[%clk 0:00:28]}  Qxc3 {[%clk 0:00:42]} 26. bxc3 {[%clk 0:00:28]}  Rh5 {[%clk 0:00:41]} 27. Nd4 {[%clk 0:00:27]}  Rc5 {[%clk 0:00:40]} 28. Kb2 {[%clk 0:00:26]}  b5 {[%clk 0:00:34]} 29. Rd3 {[%clk 0:00:23]}  a5 {[%clk 0:00:31]} 30. Nb3 {[%clk 0:00:18]}  Rc7 {[%clk 0:00:27]} 31. Nxa5 {[%clk 0:00:07]}  b4 {[%clk 0:00:27]} 32. Kb3 {[%clk 0:00:08]}  bxc3 {[%clk 0:00:24]} 33. a4 {[%clk 0:00:05]}  Ra7 {[%clk 0:00:24]} 34. Nc4 {[%clk 0:00:03]}  Bxa4+ {[%clk 0:00:23]} 35. Kb4 {[%clk 0:00:03]}  Bxc2 {[%clk 0:00:17]} 36. Rxc3 {[%clk 0:00:03]}  Bxc3+ {[%clk 0:00:16]} 37. Kxc3 {[%clk 0:00:04]}  Bxe4 {[%clk 0:00:15]} 38. Nd6+ {[%clk 0:00:04]}  Kf8 {[%clk 0:00:14]} 39. Nxe4 {[%clk 0:00:05]}  Ra2 {[%clk 0:00:12]} 40. g4 {[%clk 0:00:04]}  Ra3+ {[%clk 0:00:12]} 41. Kd4 {[%clk 0:00:04]}  Rxh3 {[%clk 0:00:13]} 42. Ke5 {[%clk 0:00:02]}  Rf3 {[%clk 0:00:13]} 43. Ng5 {[%clk 0:00:01]}  Rf2 {[%clk 0:00:11]} 44. Ne4 {[%clk 0:00:01]}  Rf3 {[%clk 0:00:08]} 45. Ng5 {[%clk 0:00:01]}  Ra3 {[%clk 0:00:08]} 46. Ne4 {[%clk 0:00:01]}  Ra5+ {[%clk 0:00:08]} 47. Kf4 {[%clk 0:00:01]}  Nd5+ {[%clk 0:00:08]} 48. Kg3 {[%clk 0:00:02]}  Kg7 {[%clk 0:00:06]} 49. g5 {[%clk 0:00:02]}  Ra3+ {[%clk 0:00:06]} 50. Kg4 {[%clk 0:00:00]}  Ne3+ {[%clk 0:00:06]} 0-1

[Event "November 21 Early 2023"]
[Site "https://www.chess.com"]
[Date "2023.11.21"]
[Round "3"]
[White "Sadykov, Ramil"]
[Black "Mikhailovsky, Vladimir"]
[Result "0-1"]
[Board "36"]
[TimeControl "180+1"]
[WhiteFideId "24113590"]
[BlackFideId "34105414"]
[WhiteElo "2245"]
[BlackElo "2257"]
[WhiteTeam "FID"]
[BlackTeam "RUS"]
[WhiteClock "0:00:00"]
[BlackClock "0:00:02"]

1. e4 {[%clk 0:02:59]}  e5 {[%clk 0:02:58]} 2. Nf3 {[%clk 0:02:58]}  d5 {[%clk 0:02:59]} 3. d3 {[%clk 0:02:57]}  Nc6 {[%clk 0:02:58]} 4. Be2 {[%clk 0:02:51]}  Nf6 {[%clk 0:02:58]} 5. Nbd2 {[%clk 0:02:50]}  Bc5 {[%clk 0:02:58]} 6. O-O {[%clk 0:02:50]}  O-O {[%clk 0:02:58]} 7. c3 {[%clk 0:02:51]}  Bb6 {[%clk 0:02:58]} 8. b4 {[%clk 0:02:46]}  a6 {[%clk 0:02:58]} 9. Qc2 {[%clk 0:02:43]}  Re8 {[%clk 0:02:59]} 10. Bb2 {[%clk 0:02:41]}  Nh5 {[%clk 0:02:49]} 11. Rfe1 {[%clk 0:02:24]}  Nf4 {[%clk 0:02:46]} 12. Bf1 {[%clk 0:02:25]}  Bg4 {[%clk 0:02:36]} 13. Rad1 {[%clk 0:02:04]}  dxe4 {[%clk 0:02:30]} 14. dxe4 {[%clk 0:02:02]}  Qf6 {[%clk 0:02:28]} 15. g3 {[%clk 0:01:26]}  Nh3+ {[%clk 0:02:05]} 16. Bxh3 {[%clk 0:01:25]}  Bxh3 {[%clk 0:02:06]} 17. Qd3 {[%clk 0:01:14]}  Rad8 {[%clk 0:02:02]} 18. Qe2 {[%clk 0:00:57]}  Ba7 {[%clk 0:00:51]} 19. Nc4 {[%clk 0:00:52]}  Bg4 {[%clk 0:00:39]} 20. Kg2 {[%clk 0:00:52]}  Qe6 {[%clk 0:00:38]} 21. Bc1 {[%clk 0:00:35]}  h6 {[%clk 0:00:28]} 22. Be3 {[%clk 0:00:31]}  b5 {[%clk 0:00:14]} 23. Bxa7 {[%clk 0:00:28]}  bxc4 {[%clk 0:00:14]} 24. Bc5 {[%clk 0:00:26]}  Bh3+ {[%clk 0:00:11]} 25. Kg1 {[%clk 0:00:26]}  Bg4 {[%clk 0:00:12]} 26. Kg2 {[%clk 0:00:26]}  Nb8 {[%clk 0:00:12]} 27. Rxd8 {[%clk 0:00:22]}  Rxd8 {[%clk 0:00:12]} 28. Rd1 {[%clk 0:00:23]}  Rxd1 {[%clk 0:00:11]} 29. Qxd1 {[%clk 0:00:23]}  Nd7 {[%clk 0:00:12]} 30. Be3 {[%clk 0:00:15]}  Nf6 {[%clk 0:00:12]} 31. Qc2 {[%clk 0:00:06]}  h5 {[%clk 0:00:08]} 32. Ng5 {[%clk 0:00:05]}  Qc6 {[%clk 0:00:07]} 33. f3 {[%clk 0:00:05]}  Bc8 {[%clk 0:00:06]} 34. Qd2 {[%clk 0:00:05]}  Bd7 {[%clk 0:00:05]} 35. Bc5 {[%clk 0:00:04]}  Qa4 {[%clk 0:00:05]} 36. h4 {[%clk 0:00:04]}  Qc6 {[%clk 0:00:03]} 37. Be7 {[%clk 0:00:04]}  Ne8 {[%clk 0:00:02]} 38. Nh3 {[%clk 0:00:01]}  f6 {[%clk 0:00:03]} 39. Nf2 {[%clk 0:00:01]}  Be6 {[%clk 0:00:02]} 40. Bc5 {[%clk 0:00:02]}  Nd6 {[%clk 0:00:02]} 41. Bxd6 {[%clk 0:00:01]}  cxd6 {[%clk 0:00:03]} 42. Nd1 {[%clk 0:00:02]}  d5 {[%clk 0:00:04]} 43. exd5 {[%clk 0:00:02]}  Bxd5 {[%clk 0:00:05]} 44. Qe2 {[%clk 0:00:02]}  e4 {[%clk 0:00:04]} 45. f4 {[%clk 0:00:02]}  e3+ {[%clk 0:00:03]} 46. Kh2 {[%clk 0:00:02]}  Bf3 {[%clk 0:00:03]} 47. Qe1 {[%clk 0:00:01]}  e2 {[%clk 0:00:02]} 48. Ne3 {[%clk 0:00:01]}  Qe4 {[%clk 0:00:02]} 49. Ng2 {[%clk 0:00:00]}  Bxg2 {[%clk 0:00:02]} 0-1

[Event "November 21 Early 2023"]
[Site "https://www.chess.com"]
[Date "2023.11.21"]
[Round "3"]
[White "Kuzubov, Yuriy"]
[Black "FrenchHarvey"]
[Result "1-0"]
[Board "38"]
[TimeControl "180+1"]
[WhiteFideId "14112906"]
[WhiteElo "2487"]
[BlackElo "2675"]
[WhiteTeam "UKR"]
[WhiteClock "0:01:01"]
[BlackClock "0:00:22"]

1. d4 {[%clk 0:03:00]}  d5 {[%clk 0:02:59]} 2. c4 {[%clk 0:03:00]}  c6 {[%clk 0:02:59]} 3. Nf3 {[%clk 0:03:00]}  Nf6 {[%clk 0:03:00]} 4. Nc3 {[%clk 0:03:01]}  dxc4 {[%clk 0:02:58]} 5. a4 {[%clk 0:03:01]}  Bf5 {[%clk 0:02:57]} 6. Nh4 {[%clk 0:03:01]}  e6 {[%clk 0:02:53]} 7. Nxf5 {[%clk 0:03:00]}  exf5 {[%clk 0:02:54]} 8. e3 {[%clk 0:03:01]}  Bd6 {[%clk 0:02:54]} 9. Bxc4 {[%clk 0:03:00]}  Nbd7 {[%clk 0:02:52]} 10. Qb3 {[%clk 0:02:53]}  O-O {[%clk 0:02:51]} 11. Qxb7 {[%clk 0:02:51]}  Nb6 {[%clk 0:02:45]} 12. Bd3 {[%clk 0:02:43]}  c5 {[%clk 0:02:40]} 13. dxc5 {[%clk 0:02:36]}  Bxc5 {[%clk 0:02:37]} 14. Bxf5 {[%clk 0:02:36]}  Nfd5 {[%clk 0:02:19]} 15. O-O {[%clk 0:02:21]}  Nxc3 {[%clk 0:02:13]} 16. bxc3 {[%clk 0:02:21]}  Qf6 {[%clk 0:02:03]} 17. Qf3 {[%clk 0:01:54]}  Qxc3 {[%clk 0:01:56]} 18. Rb1 {[%clk 0:01:55]}  Ba3 {[%clk 0:01:33]} 19. a5 {[%clk 0:01:37]}  Nc4 {[%clk 0:01:33]} 20. a6 {[%clk 0:01:33]}  g6 {[%clk 0:01:22]} 21. Be4 {[%clk 0:01:22]}  Rab8 {[%clk 0:01:22]} 22. Rxb8 {[%clk 0:01:11]}  Rxb8 {[%clk 0:01:19]} 23. Bd5 {[%clk 0:01:09]}  Ne5 {[%clk 0:01:16]} 24. Qf6 {[%clk 0:01:07]}  Bb4 {[%clk 0:00:22]} 25. Bb2 {[%clk 0:01:01]} 1-0

[Event "November 21 Early 2023"]
[Site "https://www.chess.com"]
[Date "2023.11.21"]
[Round "3"]
[White "Krstulovic, Alex"]
[Black "Zakhartsov, Vladimir"]
[Result "1-0"]
[Board "39"]
[TimeControl "180+1"]
[WhiteFideId "760056"]
[BlackFideId "4145097"]
[WhiteElo "2311"]
[BlackElo "2448"]
[WhiteTeam "HUN"]
[BlackTeam "RUS"]
[WhiteClock "0:00:58"]
[BlackClock "0:00:00"]

1. d4 {[%clk 0:02:57]}  Nf6 {[%clk 0:02:59]} 2. Nf3 {[%clk 0:02:57]}  e6 {[%clk 0:02:58]} 3. Bf4 {[%clk 0:02:57]}  c5 {[%clk 0:02:57]} 4. e3 {[%clk 0:02:57]}  d5 {[%clk 0:02:53]} 5. Nbd2 {[%clk 0:02:57]}  Bd6 {[%clk 0:02:53]} 6. Ne5 {[%clk 0:02:54]}  O-O {[%clk 0:02:50]} 7. c3 {[%clk 0:02:54]}  Nc6 {[%clk 0:02:47]} 8. Bd3 {[%clk 0:02:28]}  Qc7 {[%clk 0:02:37]} 9. Qf3 {[%clk 0:02:22]}  Nxe5 {[%clk 0:02:25]} 10. dxe5 {[%clk 0:02:21]}  Bxe5 {[%clk 0:02:25]} 11. Bg5 {[%clk 0:02:21]}  h6 {[%clk 0:02:19]} 12. Bh4 {[%clk 0:02:10]}  b6 {[%clk 0:02:17]} 13. Qh3 {[%clk 0:01:52]}  Bb7 {[%clk 0:01:48]} 14. f4 {[%clk 0:01:47]}  Bxf4 {[%clk 0:00:50]} 15. exf4 {[%clk 0:01:45]}  Qxf4 {[%clk 0:00:51]} 16. O-O-O {[%clk 0:01:42]}  Ne4 {[%clk 0:00:51]} 17. Rhf1 {[%clk 0:01:39]}  Qe5 {[%clk 0:00:35]} 18. Bxe4 {[%clk 0:01:32]}  dxe4 {[%clk 0:00:36]} 19. Nc4 {[%clk 0:01:32]}  Qh5 {[%clk 0:00:27]} 20. g4 {[%clk 0:01:25]}  Qg6 {[%clk 0:00:27]} 21. Ne5 {[%clk 0:01:26]}  Qh7 {[%clk 0:00:26]} 22. Be7 {[%clk 0:01:27]}  Ba6 {[%clk 0:00:17]} 23. Rf2 {[%clk 0:01:23]}  f6 {[%clk 0:00:14]} 24. Bxf8 {[%clk 0:01:17]}  Rxf8 {[%clk 0:00:15]} 25. g5 {[%clk 0:01:05]}  Bc8 {[%clk 0:00:03]} 26. g6 {[%clk 0:01:05]}  Qh8 {[%clk 0:00:03]} 27. Nf7 {[%clk 0:01:05]}  Rxf7 {[%clk 0:00:03]} 28. gxf7+ {[%clk 0:01:05]}  Kxf7 {[%clk 0:00:04]} 29. Qg3 {[%clk 0:00:59]}  Qf8 {[%clk 0:00:01]} 30. Qc7+ {[%clk 0:00:59]}  Kg6 {[%clk 0:00:00]} 31. Rd8 {[%clk 0:00:58]} 1-0

[Event "November 21 Early 2023"]
[Site "https://www.chess.com"]
[Date "2023.11.21"]
[Round "3"]
[White "Trost, Edvin"]
[Black "Beerdsen, Thomas"]
[Result "1-0"]
[Board "41"]
[TimeControl "180+1"]
[WhiteFideId "1729519"]
[BlackFideId "1030108"]
[WhiteElo "2385"]
[BlackElo "2550"]
[WhiteTeam "SWE"]
[BlackTeam "NED"]
[WhiteClock "0:00:15"]
[BlackClock "0:00:28"]

1. e4 {[%clk 0:03:00]}  e5 {[%clk 0:03:00]} 2. Nf3 {[%clk 0:02:59]}  Nc6 {[%clk 0:03:00]} 3. Bc4 {[%clk 0:02:58]}  Nf6 {[%clk 0:03:00]} 4. d3 {[%clk 0:02:58]}  h6 {[%clk 0:03:00]} 5. O-O {[%clk 0:02:46]}  d6 {[%clk 0:03:01]} 6. a4 {[%clk 0:02:46]}  g5 {[%clk 0:03:01]} 7. a5 {[%clk 0:02:46]}  a6 {[%clk 0:03:00]} 8. c3 {[%clk 0:02:45]}  g4 {[%clk 0:03:00]} 9. Ne1 {[%clk 0:02:39]}  Qe7 {[%clk 0:02:56]} 10. b4 {[%clk 0:02:35]}  Be6 {[%clk 0:02:56]} 11. Bxe6 {[%clk 0:02:30]}  Qxe6 {[%clk 0:02:55]} 12. Nd2 {[%clk 0:02:28]}  d5 {[%clk 0:02:55]} 13. Qe2 {[%clk 0:02:25]}  Bg7 {[%clk 0:02:50]} 14. exd5 {[%clk 0:02:22]}  Qxd5 {[%clk 0:02:48]} 15. Bb2 {[%clk 0:02:20]}  O-O {[%clk 0:02:39]} 16. Ne4 {[%clk 0:02:18]}  Nxe4 {[%clk 0:02:34]} 17. dxe4 {[%clk 0:02:19]}  Qe6 {[%clk 0:02:34]} 18. Nd3 {[%clk 0:02:19]}  Qc4 {[%clk 0:02:31]} 19. Rfd1 {[%clk 0:02:14]}  Rad8 {[%clk 0:02:30]} 20. Qe3 {[%clk 0:02:15]}  Kh7 {[%clk 0:02:21]} 21. Nc5 {[%clk 0:02:11]}  b6 {[%clk 0:02:17]} 22. axb6 {[%clk 0:02:03]}  cxb6 {[%clk 0:02:16]} 23. Nd7 {[%clk 0:02:03]}  Rfe8 {[%clk 0:02:10]} 24. Nxb6 {[%clk 0:01:57]}  Qb3 {[%clk 0:02:10]} 25. Rd2 {[%clk 0:01:40]}  Rxd2 {[%clk 0:01:59]} 26. Qxd2 {[%clk 0:01:40]}  Rd8 {[%clk 0:02:00]} 27. Nd5 {[%clk 0:01:40]}  f5 {[%clk 0:02:01]} 28. Qc1 {[%clk 0:01:03]}  f4 {[%clk 0:01:46]} 29. c4 {[%clk 0:01:00]}  Nxb4 {[%clk 0:01:37]} 30. Ra3 {[%clk 0:01:00]}  Qc2 {[%clk 0:01:36]} 31. Qxc2 {[%clk 0:01:01]}  Nxc2 {[%clk 0:01:36]} 32. Rxa6 {[%clk 0:01:02]}  Rb8 {[%clk 0:01:35]} 33. Rb6 {[%clk 0:01:02]}  Rc8 {[%clk 0:01:33]} 34. Rb7 {[%clk 0:00:59]}  Kh8 {[%clk 0:01:17]} 35. Nxf4 {[%clk 0:00:58]}  Rxc4 {[%clk 0:01:11]} 36. Bxe5 {[%clk 0:00:56]}  Bxe5 {[%clk 0:01:09]} 37. Ng6+ {[%clk 0:00:56]}  Kg8 {[%clk 0:01:09]} 38. Nxe5 {[%clk 0:00:57]}  Rxe4 {[%clk 0:01:10]} 39. Nd3 {[%clk 0:00:53]}  Ne1 {[%clk 0:01:08]} 40. Nc5 {[%clk 0:00:32]}  Re5 {[%clk 0:01:09]} 41. Rc7 {[%clk 0:00:33]}  h5 {[%clk 0:01:03]} 42. h3 {[%clk 0:00:31]}  gxh3 {[%clk 0:00:56]} 43. gxh3 {[%clk 0:00:32]}  Nf3+ {[%clk 0:00:56]} 44. Kg2 {[%clk 0:00:32]}  Nh4+ {[%clk 0:00:53]} 45. Kg3 {[%clk 0:00:32]}  Ng6 {[%clk 0:00:54]} 46. Nd3 {[%clk 0:00:26]}  Re2 {[%clk 0:00:46]} 47. Rc6 {[%clk 0:00:19]}  Kh7 {[%clk 0:00:40]} 48. Rxg6 {[%clk 0:00:18]}  h4+ {[%clk 0:00:32]} 49. Kf3 {[%clk 0:00:17]}  Rd2 {[%clk 0:00:31]} 50. Rd6 {[%clk 0:00:16]}  Kh8 {[%clk 0:00:31]} 51. Kg4 {[%clk 0:00:16]}  Kg7 {[%clk 0:00:31]} 52. Kxh4 {[%clk 0:00:17]}  Kh7 {[%clk 0:00:31]} 53. Kg5 {[%clk 0:00:16]}  Kg7 {[%clk 0:00:31]} 54. h4 {[%clk 0:00:17]}  Rd1 {[%clk 0:00:30]} 55. Rd7+ {[%clk 0:00:14]}  Kg8 {[%clk 0:00:30]} 56. Ne5 {[%clk 0:00:15]}  Rg1+ {[%clk 0:00:30]} 57. Ng4 {[%clk 0:00:15]}  Kh8 {[%clk 0:00:30]} 58. f4 {[%clk 0:00:16]}  Kg8 {[%clk 0:00:28]} 59. f5 {[%clk 0:00:16]}  Kh8 {[%clk 0:00:29]} 60. f6 {[%clk 0:00:16]}  Rd1 {[%clk 0:00:28]} 61. Rxd1 {[%clk 0:00:15]} 1-0

[Event "November 21 Early 2023"]
[Site "https://www.chess.com"]
[Date "2023.11.21"]
[Round "3"]
[White "Aaditya Dhingra"]
[Black "Licznerski, Lukasz"]
[Result "0-1"]
[Board "42"]
[TimeControl "180+1"]
[WhiteFideId "25678191"]
[BlackFideId "1179250"]
[WhiteElo "2269"]
[BlackElo "2436"]
[WhiteTeam "IND"]
[BlackTeam "POL"]
[WhiteClock "0:00:15"]
[BlackClock "0:00:08"]

1. g3 {[%clk 0:03:00]}  d5 {[%clk 0:02:59]} 2. Bg2 {[%clk 0:03:01]}  Nf6 {[%clk 0:03:00]} 3. b3 {[%clk 0:03:00]}  c5 {[%clk 0:02:57]} 4. Bb2 {[%clk 0:03:00]}  Nc6 {[%clk 0:02:57]} 5. Nf3 {[%clk 0:03:00]}  Bg4 {[%clk 0:02:53]} 6. O-O {[%clk 0:02:55]}  e6 {[%clk 0:02:53]} 7. d3 {[%clk 0:02:46]}  Bd6 {[%clk 0:02:41]} 8. Nbd2 {[%clk 0:02:45]}  O-O {[%clk 0:02:39]} 9. h3 {[%clk 0:02:45]}  Bh5 {[%clk 0:02:39]} 10. e4 {[%clk 0:02:45]}  d4 {[%clk 0:02:38]} 11. Qe2 {[%clk 0:02:36]}  e5 {[%clk 0:02:37]} 12. g4 {[%clk 0:02:35]}  Bg6 {[%clk 0:02:37]} 13. Nh4 {[%clk 0:02:32]}  Ne8 {[%clk 0:02:27]} 14. Nf5 {[%clk 0:02:28]}  Nc7 {[%clk 0:02:17]} 15. Nc4 {[%clk 0:02:26]}  Be7 {[%clk 0:02:18]} 16. a4 {[%clk 0:02:21]}  Ne6 {[%clk 0:02:15]} 17. Bc1 {[%clk 0:02:19]}  Bg5 {[%clk 0:02:15]} 18. Ba3 {[%clk 0:01:56]}  b6 {[%clk 0:02:06]} 19. h4 {[%clk 0:01:51]}  Bxh4 {[%clk 0:02:00]} 20. Nxh4 {[%clk 0:01:42]}  Qxh4 {[%clk 0:01:59]} 21. Bc1 {[%clk 0:01:43]}  h5 {[%clk 0:01:38]} 22. f3 {[%clk 0:01:34]}  Rad8 {[%clk 0:01:07]} 23. gxh5 {[%clk 0:01:25]}  Bxh5 {[%clk 0:01:05]} 24. Qf2 {[%clk 0:01:25]}  Qxf2+ {[%clk 0:01:01]} 25. Rxf2 {[%clk 0:01:24]}  g5 {[%clk 0:01:00]} 26. Bh3 {[%clk 0:01:13]}  Nf4 {[%clk 0:00:59]} 27. Bf5 {[%clk 0:01:04]}  f6 {[%clk 0:00:50]} 28. Bxf4 {[%clk 0:00:56]}  exf4 {[%clk 0:00:47]} 29. Rh2 {[%clk 0:00:47]}  Bf7 {[%clk 0:00:32]} 30. Kf2 {[%clk 0:00:47]}  Rfe8 {[%clk 0:00:18]} 31. Rah1 {[%clk 0:00:31]}  Kf8 {[%clk 0:00:18]} 32. Rh7 {[%clk 0:00:30]}  Ke7 {[%clk 0:00:16]} 33. Bg6 {[%clk 0:00:25]}  Rf8 {[%clk 0:00:16]} 34. R1h6 {[%clk 0:00:24]}  Rd7 {[%clk 0:00:08]} 35. Bf5 {[%clk 0:00:24]}  Rc7 {[%clk 0:00:07]} 36. e5 {[%clk 0:00:24]}  Nxe5 {[%clk 0:00:06]} 37. Nxe5 {[%clk 0:00:24]}  fxe5 {[%clk 0:00:07]} 38. Re6+ {[%clk 0:00:24]}  Kd8 {[%clk 0:00:08]} 39. Rxe5 {[%clk 0:00:20]}  Bg8 {[%clk 0:00:05]} 40. Rh5 {[%clk 0:00:19]}  Re7 {[%clk 0:00:04]} 41. Rxe7 {[%clk 0:00:17]}  Kxe7 {[%clk 0:00:05]} 42. Rxg5 {[%clk 0:00:17]}  Kf6 {[%clk 0:00:06]} 43. Rh5 {[%clk 0:00:17]}  Bf7 {[%clk 0:00:06]} 44. Bg4 {[%clk 0:00:15]}  Bxh5 {[%clk 0:00:06]} 45. Bxh5 {[%clk 0:00:16]}  Rh8 {[%clk 0:00:06]} 46. Bg4 {[%clk 0:00:16]}  Rh2+ {[%clk 0:00:07]} 47. Ke1 {[%clk 0:00:15]}  Rxc2 {[%clk 0:00:08]} 0-1

[Event "November 21 Early 2023"]
[Site "https://www.chess.com"]
[Date "2023.11.21"]
[Round "3"]
[White "Javakhadze, Zurab"]
[Black "Streltsov, Alexey"]
[Result "1-0"]
[Board "44"]
[TimeControl "180+1"]
[WhiteFideId "13603647"]
[BlackFideId "24104434"]
[WhiteElo "2381"]
[BlackElo "2311"]
[WhiteTeam "GEO"]
[BlackTeam "ISR"]
[WhiteClock "0:00:10"]
[BlackClock "0:00:30"]

1. Nf3 {[%clk 0:03:00]}  d5 {[%clk 0:02:59]} 2. g3 {[%clk 0:03:01]}  Nc6 {[%clk 0:03:00]} 3. d4 {[%clk 0:02:59]}  Bf5 {[%clk 0:03:00]} 4. Bg2 {[%clk 0:02:59]}  Nb4 {[%clk 0:03:00]} 5. Na3 {[%clk 0:02:59]}  e6 {[%clk 0:03:01]} 6. O-O {[%clk 0:02:59]}  Nf6 {[%clk 0:03:01]} 7. c3 {[%clk 0:02:57]}  Nc6 {[%clk 0:03:02]} 8. c4 {[%clk 0:02:49]}  Be4 {[%clk 0:02:53]} 9. cxd5 {[%clk 0:02:43]}  exd5 {[%clk 0:02:52]} 10. Nb5 {[%clk 0:02:42]}  Bd6 {[%clk 0:02:34]} 11. Nxd6+ {[%clk 0:02:28]}  Qxd6 {[%clk 0:02:35]} 12. Bf4 {[%clk 0:02:29]}  Qd7 {[%clk 0:02:34]} 13. Rc1 {[%clk 0:02:23]}  Nh5 {[%clk 0:02:32]} 14. Ne5 {[%clk 0:02:22]}  Nxe5 {[%clk 0:02:28]} 15. Bxe5 {[%clk 0:02:23]}  Bxg2 {[%clk 0:02:28]} 16. Kxg2 {[%clk 0:02:22]}  c6 {[%clk 0:02:17]} 17. e4 {[%clk 0:01:51]}  Nf6 {[%clk 0:02:17]} 18. Bxf6 {[%clk 0:01:49]}  gxf6 {[%clk 0:02:18]} 19. Qf3 {[%clk 0:00:58]}  O-O-O {[%clk 0:02:16]} 20. Rfe1 {[%clk 0:00:58]}  h5 {[%clk 0:01:25]} 21. Qxf6 {[%clk 0:00:43]}  h4 {[%clk 0:01:22]} 22. Qf5 {[%clk 0:00:42]}  h3+ {[%clk 0:01:07]} 23. Kf1 {[%clk 0:00:32]}  Rhe8 {[%clk 0:01:05]} 24. Qxd7+ {[%clk 0:00:28]}  Rxd7 {[%clk 0:01:06]} 25. e5 {[%clk 0:00:27]}  f6 {[%clk 0:00:57]} 26. f4 {[%clk 0:00:15]}  fxe5 {[%clk 0:00:56]} 27. dxe5 {[%clk 0:00:14]}  d4 {[%clk 0:00:56]} 28. Ke2 {[%clk 0:00:14]}  Kc7 {[%clk 0:00:41]} 29. Kd3 {[%clk 0:00:14]}  Kb6 {[%clk 0:00:42]} 30. b4 {[%clk 0:00:11]}  Kb5 {[%clk 0:00:42]} 31. Rc4 {[%clk 0:00:11]}  a5 {[%clk 0:00:36]} 32. bxa5 {[%clk 0:00:10]}  c5 {[%clk 0:00:34]} 33. Rb1+ {[%clk 0:00:10]}  Kc6 {[%clk 0:00:34]} 34. Rb6+ {[%clk 0:00:10]}  Kd5 {[%clk 0:00:35]} 35. Rb5 {[%clk 0:00:10]}  Rc7 {[%clk 0:00:31]} 36. Rxd4+ {[%clk 0:00:10]}  Kc6 {[%clk 0:00:30]} 37. Rb6# {[%clk 0:00:10]} 1-0